[Event "*** Titled Tuesday Blitz"]
[Site "Chess.com"]
[Date "2020.04.21"]
[Round "1"]
[White "Bigfish1995"]
[Black "Olga_Girya"]
[Result "1-0"]
[WhiteElo "3076"]
[BlackElo "2476"]
[TimeControl "180+1"]
[EndTime "10:07:16 PDT"]
[Termination "Bigfish1995 won on time"]

1. d4 {[%clk 0:02:59.1]} 1... d5 {[%clk 0:02:57.7]} 2. c4 {[%clk 0:02:59.2]}
2... c6 {[%clk 0:02:57.9]} 3. Nf3 {[%clk 0:02:59.8]} 3... Nf6 {[%clk 0:02:58.1]}
4. e3 {[%clk 0:03:00.1]} 4... Bg4 {[%clk 0:02:57.1]} 5. Qb3 {[%clk 0:02:57.5]}
5... Qb6 {[%clk 0:02:56.2]} 6. Nc3 {[%clk 0:02:55.9]} 6... e6 {[%clk 0:02:51.7]}
7. Nh4 {[%clk 0:02:56.1]} 7... Bh5 {[%clk 0:02:49.3]} 8. h3 {[%clk 0:02:56]}
8... Nbd7 {[%clk 0:02:47.5]} 9. g4 {[%clk 0:02:45.3]} 9... Bg6 {[%clk
0:02:47.7]} 10. Nxg6 {[%clk 0:02:45.3]} 10... hxg6 {[%clk 0:02:48.6]} 11. g5
{[%clk 0:02:36.1]} 11... Ne4 {[%clk 0:02:47.6]} 12. Nxe4 {[%clk 0:02:35.7]}
12... dxe4 {[%clk 0:02:46.4]} 13. Bd2 {[%clk 0:02:35.3]} 13... Rh4 {[%clk
0:02:29.4]} 14. c5 {[%clk 0:02:14]} 14... Qc7 {[%clk 0:02:00.1]} 15. Rg1 {[%clk
0:01:41.9]} 15... Be7 {[%clk 0:01:58.7]} 16. O-O-O {[%clk 0:01:37.7]} 16... b6
{[%clk 0:01:20.6]} 17. cxb6 {[%clk 0:01:35.7]} 17... axb6 {[%clk 0:01:17.3]} 18.
Kb1 {[%clk 0:01:34.6]} 18... Kf8 {[%clk 0:01:00.4]} 19. Rc1 {[%clk 0:01:33]}
19... Qb7 {[%clk 0:00:55.8]} 20. Bg2 {[%clk 0:01:23.4]} 20... c5 {[%clk
0:00:48.7]} 21. Bf1 {[%clk 0:01:18.9]} 21... cxd4 {[%clk 0:00:28.4]} 22. exd4
{[%clk 0:01:17.6]} 22... Rd8 {[%clk 0:00:17.9]} 23. Qg3 {[%clk 0:01:07.1]} 23...
Rh8 {[%clk 0:00:11.1]} 24. Rc7 {[%clk 0:01:06.3]} 24... Qd5 {[%clk 0:00:11.2]}
25. Qc3 {[%clk 0:00:29.1]} 25... Bd6 {[%clk 0:00:09.5]} 26. Ra7 {[%clk
0:00:23.2]} 26... Qf5 {[%clk 0:00:07.5]} 27. Be3 {[%clk 0:00:23.4]} 27... Ke7
{[%clk 0:00:06.5]} 28. Qc6 {[%clk 0:00:21.9]} 28... Qd5 {[%clk 0:00:05.3]} 29.
Bb5 {[%clk 0:00:19]} 29... Qxc6 {[%clk 0:00:04.9]} 30. Bxc6 {[%clk 0:00:19.5]}
30... Bh2 {[%clk 0:00:03.5]} 31. Rd1 {[%clk 0:00:18.7]} 31... Rxh3 {[%clk
0:00:03.5]} 32. d5 {[%clk 0:00:19.1]} 32... e5 {[%clk 0:00:03.5]} 33. Bxb6
{[%clk 0:00:19.1]} 1-0

[Event "*** Titled Tuesday Blitz"]
[Site "Chess.com"]
[Date "2020.04.21"]
[Round "1"]
[White "DishonorOnYourCow"]
[Black "LionTheLeon_06"]
[Result "0-1"]
[WhiteElo "2303"]
[BlackElo "2630"]
[TimeControl "180+1"]
[EndTime "10:07:18 PDT"]
[Termination "LionTheLeon_06 won on time"]

1. d4 {[%clk 0:02:58.3]} 1... Nf6 {[%clk 0:02:59.2]} 2. c4 {[%clk 0:02:57.2]}
2... e6 {[%clk 0:02:59.2]} 3. Nf3 {[%clk 0:02:56.6]} 3... b6 {[%clk 0:02:58.6]}
4. g3 {[%clk 0:02:56.3]} 4... Ba6 {[%clk 0:02:58.1]} 5. Qc2 {[%clk 0:02:54.5]}
5... c5 {[%clk 0:02:57.4]} 6. Bg2 {[%clk 0:02:50.7]} 6... Bb7 {[%clk 0:02:56.5]}
7. O-O {[%clk 0:02:30.2]} 7... Be7 {[%clk 0:02:50]} 8. b3 {[%clk 0:02:28.8]}
8... cxd4 {[%clk 0:02:49]} 9. Nxd4 {[%clk 0:02:28.3]} 9... Bxg2 {[%clk
0:02:48.9]} 10. Kxg2 {[%clk 0:02:29.2]} 10... d6 {[%clk 0:02:47]} 11. Bb2 {[%clk
0:02:28.8]} 11... a6 {[%clk 0:02:46.9]} 12. Nd2 {[%clk 0:02:28.6]} 12... O-O
{[%clk 0:02:46.9]} 13. Rfd1 {[%clk 0:02:22.7]} 13... Qc7 {[%clk 0:02:46.6]} 14.
Rac1 {[%clk 0:02:17.1]} 14... Nbd7 {[%clk 0:02:45.3]} 15. e4 {[%clk 0:02:07.3]}
15... Rac8 {[%clk 0:02:42.8]} 16. N2f3 {[%clk 0:01:57.2]} 16... Qb7 {[%clk
0:02:41.1]} 17. Re1 {[%clk 0:01:48.7]} 17... Rfe8 {[%clk 0:02:40.5]} 18. Qe2
{[%clk 0:01:44.7]} 18... Bf8 {[%clk 0:02:37.8]} 19. Kg1 {[%clk 0:01:40.8]} 19...
h6 {[%clk 0:02:33.4]} 20. Rcd1 {[%clk 0:01:32.2]} 20... Nc5 {[%clk 0:02:30.4]}
21. e5 {[%clk 0:01:25.2]} 21... dxe5 {[%clk 0:02:28.8]} 22. Nxe5 {[%clk
0:01:24.8]} 22... Red8 {[%clk 0:02:25.7]} 23. Ng4 {[%clk 0:01:17]} 23... Be7
{[%clk 0:02:16.6]} 24. Nc2 {[%clk 0:01:12.8]} 24... Ne8 {[%clk 0:01:56]} 25. Qe3
{[%clk 0:00:59.1]} 25... Rxd1 {[%clk 0:01:40.6]} 26. Rxd1 {[%clk 0:00:58.6]}
26... Qc7 {[%clk 0:01:11.2]} 27. Be5 {[%clk 0:00:52.2]} 27... Qc6 {[%clk
0:01:04.3]} 28. Nd4 {[%clk 0:00:48]} 28... Qe4 {[%clk 0:01:01.9]} 29. Qxe4
{[%clk 0:00:43.3]} 29... Nxe4 {[%clk 0:01:02.8]} 30. Ne2 {[%clk 0:00:30.5]}
30... f6 {[%clk 0:00:52.3]} 31. Bb2 {[%clk 0:00:25.2]} 31... Rd8 {[%clk
0:00:47.8]} 32. Rxd8 {[%clk 0:00:23.7]} 32... Bxd8 {[%clk 0:00:48.7]} 33. Ne3
{[%clk 0:00:17.8]} 33... Kf7 {[%clk 0:00:48.3]} 34. Nd4 {[%clk 0:00:17.6]} 34...
Bc7 {[%clk 0:00:46.5]} 35. f3 {[%clk 0:00:16.5]} 35... Nc5 {[%clk 0:00:46.1]}
36. Kf2 {[%clk 0:00:16.7]} 36... Nd6 {[%clk 0:00:46.2]} 37. Ke2 {[%clk 0:00:16]}
37... h5 {[%clk 0:00:46.4]} 38. Nec2 {[%clk 0:00:11.1]} 38... g5 {[%clk
0:00:37.1]} 39. Kf2 {[%clk 0:00:05.7]} 39... Nc8 {[%clk 0:00:36.6]} 40. Ke3
{[%clk 0:00:04.7]} 40... Ne7 {[%clk 0:00:36.6]} 41. b4 {[%clk 0:00:02.2]} 41...
Nd7 {[%clk 0:00:34.6]} 42. a4 {[%clk 0:00:01.6]} 42... Ng6 {[%clk 0:00:33.5]}
0-1

[Event "*** Titled Tuesday Blitz"]
[Site "Chess.com"]
[Date "2020.04.21"]
[Round "1"]
[White "lucasran"]
[Black "dennisodessa"]
[Result "1-0"]
[WhiteElo "2610"]
[BlackElo "2276"]
[TimeControl "180+1"]
[EndTime "10:07:18 PDT"]
[Termination "lucasran won on time"]

1. Nf3 {[%clk 0:03:00.8]} 1... Nf6 {[%clk 0:02:57.9]} 2. c4 {[%clk 0:03:00.6]}
2... e6 {[%clk 0:02:56.3]} 3. g3 {[%clk 0:03:00]} 3... b6 {[%clk 0:02:56.2]} 4.
Bg2 {[%clk 0:03:00.3]} 4... Bb7 {[%clk 0:02:56.3]} 5. O-O {[%clk 0:03:01]} 5...
Be7 {[%clk 0:02:56]} 6. Nc3 {[%clk 0:03:01.7]} 6... O-O {[%clk 0:02:56.4]} 7.
Re1 {[%clk 0:03:02.1]} 7... Ne4 {[%clk 0:02:55.8]} 8. Nxe4 {[%clk 0:03:01.9]}
8... Bxe4 {[%clk 0:02:56.7]} 9. d3 {[%clk 0:03:02.5]} 9... Bb7 {[%clk
0:02:57.2]} 10. e4 {[%clk 0:03:02.6]} 10... c5 {[%clk 0:02:55.8]} 11. d4 {[%clk
0:03:02.2]} 11... cxd4 {[%clk 0:02:56.7]} 12. Nxd4 {[%clk 0:03:03.1]} 12... d6
{[%clk 0:02:56.1]} 13. Be3 {[%clk 0:03:01.5]} 13... Nd7 {[%clk 0:02:55.4]} 14.
Rc1 {[%clk 0:02:48.4]} 14... a6 {[%clk 0:02:40.6]} 15. b3 {[%clk 0:02:45.9]}
15... Rc8 {[%clk 0:02:36.9]} 16. Ne2 {[%clk 0:02:34.1]} 16... Qc7 {[%clk
0:02:34.9]} 17. Nc3 {[%clk 0:02:32.4]} 17... Rfd8 {[%clk 0:02:30.6]} 18. Qd2
{[%clk 0:02:31.9]} 18... Nc5 {[%clk 0:02:07.5]} 19. Red1 {[%clk 0:02:30.1]}
19... Qb8 {[%clk 0:01:58.8]} 20. Bd4 {[%clk 0:02:27.9]} 20... Qa8 {[%clk
0:01:56]} 21. Qb2 {[%clk 0:01:52.9]} 21... e5 {[%clk 0:01:15.5]} 22. Be3 {[%clk
0:01:51.7]} 22... Nxe4 {[%clk 0:01:10.7]} 23. Nxe4 {[%clk 0:01:50.1]} 23... Bxe4
{[%clk 0:01:11.6]} 24. Bxe4 {[%clk 0:01:49.3]} 24... Qxe4 {[%clk 0:01:12.5]} 25.
Bxb6 {[%clk 0:01:49.3]} 25... Re8 {[%clk 0:00:45.6]} 26. Qc2 {[%clk 0:01:47.9]}
26... Qc6 {[%clk 0:00:24.9]} 27. Be3 {[%clk 0:01:45.2]} 27... a5 {[%clk
0:00:24]} 28. Qd3 {[%clk 0:01:43.8]} 28... Rb8 {[%clk 0:00:21.2]} 29. Rb1 {[%clk
0:01:37.4]} 29... Rec8 {[%clk 0:00:19.5]} 30. a4 {[%clk 0:01:22.2]} 30... g6
{[%clk 0:00:18.3]} 31. Qd5 {[%clk 0:01:12]} 31... Qc7 {[%clk 0:00:12.6]} 32. Rd3
{[%clk 0:01:08.6]} 32... Rb7 {[%clk 0:00:11.2]} 33. Rc1 {[%clk 0:01:03.2]} 33...
Rcb8 {[%clk 0:00:10.2]} 34. c5 {[%clk 0:01:03.7]} 34... dxc5 {[%clk 0:00:10.4]}
35. Bxc5 {[%clk 0:01:04.1]} 35... Bxc5 {[%clk 0:00:09.7]} 36. Rxc5 {[%clk
0:01:05]} 36... Qe7 {[%clk 0:00:08.1]} 37. Rxa5 {[%clk 0:01:01.9]} 37... Rxb3
{[%clk 0:00:08.3]} 38. Rxb3 {[%clk 0:01:01.4]} 38... Rxb3 {[%clk 0:00:09.2]} 39.
Qxb3 {[%clk 0:01:01.9]} 39... Qd6 {[%clk 0:00:02.7]} 40. Rd5 {[%clk 0:01:00.5]}
40... Qc6 {[%clk 0:00:02.8]} 41. Rd1 {[%clk 0:00:56.7]} 41... Kg7 {[%clk
0:00:02.4]} 42. a5 {[%clk 0:00:53.4]} 42... Qa6 {[%clk 0:00:02.4]} 43. Qc3
{[%clk 0:00:52]} 1-0

[Event "*** Titled Tuesday Blitz"]
[Site "Chess.com"]
[Date "2020.04.21"]
[Round "1"]
[White "r31415"]
[Black "EugeneRougon"]
[Result "0-1"]
[WhiteElo "2372"]
[BlackElo "2707"]
[TimeControl "180+1"]
[EndTime "10:07:19 PDT"]
[Termination "EugeneRougon won on time"]

1. e4 {[%clk 0:03:00.9]} 1... d6 {[%clk 0:02:59.7]} 2. d4 {[%clk 0:03:00.5]}
2... Nf6 {[%clk 0:03:00.2]} 3. Nc3 {[%clk 0:03:00.9]} 3... g6 {[%clk 0:03:00.3]}
4. h3 {[%clk 0:02:52.3]} 4... Bg7 {[%clk 0:02:57.7]} 5. g4 {[%clk 0:02:51.8]}
5... Nc6 {[%clk 0:02:49.9]} 6. d5 {[%clk 0:02:44.7]} 6... Nb8 {[%clk 0:02:49.7]}
7. Nge2 {[%clk 0:02:41.3]} 7... e6 {[%clk 0:02:46.5]} 8. Bg2 {[%clk 0:02:37]}
8... exd5 {[%clk 0:02:43.7]} 9. exd5 {[%clk 0:02:36.7]} 9... O-O {[%clk
0:02:44.3]} 10. O-O {[%clk 0:02:36.3]} 10... Nbd7 {[%clk 0:02:35]} 11. Ng3
{[%clk 0:02:34.1]} 11... Nc5 {[%clk 0:02:29.7]} 12. Be3 {[%clk 0:02:26.6]} 12...
Re8 {[%clk 0:02:27.7]} 13. Qd2 {[%clk 0:02:15.9]} 13... Bd7 {[%clk 0:02:07.6]}
14. g5 {[%clk 0:02:07.2]} 14... Nh5 {[%clk 0:02:06.5]} 15. Nxh5 {[%clk
0:02:07.2]} 15... gxh5 {[%clk 0:02:07.4]} 16. Qe2 {[%clk 0:01:52.2]} 16... Bf5
{[%clk 0:02:05.8]} 17. Qxh5 {[%clk 0:01:38.5]} 17... Bxc2 {[%clk 0:02:02.9]} 18.
Rfe1 {[%clk 0:01:14.2]} 18... Qd7 {[%clk 0:01:59.9]} 19. Qh4 {[%clk 0:00:59.7]}
19... Qf5 {[%clk 0:01:42.7]} 20. Nb5 {[%clk 0:00:36.9]} 20... Nd3 {[%clk
0:01:11.4]} 21. Nxc7 {[%clk 0:00:21.1]} 21... Nxe1 {[%clk 0:01:10.9]} 22. Rxe1
{[%clk 0:00:21]} 22... Rac8 {[%clk 0:01:08.4]} 23. Nxe8 {[%clk 0:00:21]} 23...
Rxe8 {[%clk 0:01:09.3]} 24. b3 {[%clk 0:00:15.3]} 24... Bc3 {[%clk 0:00:44.9]}
25. Rc1 {[%clk 0:00:14.9]} 25... Bb2 {[%clk 0:00:42]} 26. Re1 {[%clk 0:00:14.3]}
26... Bc3 {[%clk 0:00:28.8]} 27. Rc1 {[%clk 0:00:13.9]} 27... b5 {[%clk
0:00:25.6]} 28. Kh1 {[%clk 0:00:06.9]} 28... Bb2 {[%clk 0:00:22.4]} 29. Re1
{[%clk 0:00:06.4]} 29... Be4 {[%clk 0:00:22]} 30. Kg1 {[%clk 0:00:03.6]} 30...
Bxg2 {[%clk 0:00:21.5]} 31. Kxg2 {[%clk 0:00:04.5]} 31... Qxd5+ {[%clk 0:00:22]}
32. Kg1 {[%clk 0:00:04]} 32... Bc3 {[%clk 0:00:20.5]} 33. Rc1 {[%clk 0:00:03.9]}
33... b4 {[%clk 0:00:20.5]} 34. Bxa7 {[%clk 0:00:03.2]} 34... Re2 {[%clk
0:00:18]} 35. Be3 {[%clk 0:00:02.1]} 35... Rxa2 {[%clk 0:00:16.6]} 36. Rf1
{[%clk 0:00:01.8]} 36... Qf3 {[%clk 0:00:16.5]} 0-1

[Event "*** Titled Tuesday Blitz"]
[Site "Chess.com"]
[Date "2020.04.21"]
[Round "1"]
[White "Nikolakis2014"]
[Black "JoachimMouhamad"]
[Result "1-0"]
[WhiteElo "2683"]
[BlackElo "2356"]
[TimeControl "180+1"]
[EndTime "10:07:20 PDT"]
[Termination "Nikolakis2014 won by resignation"]

1. Nf3 {[%clk 0:03:00.9]} 1... c5 {[%clk 0:02:55.8]} 2. c4 {[%clk 0:03:00]} 2...
Nc6 {[%clk 0:02:49.8]} 3. Nc3 {[%clk 0:02:59.1]} 3... g6 {[%clk 0:02:45.8]} 4.
e3 {[%clk 0:02:58.5]} 4... Bg7 {[%clk 0:02:43.4]} 5. d4 {[%clk 0:02:58]} 5...
cxd4 {[%clk 0:02:39.5]} 6. exd4 {[%clk 0:02:57.2]} 6... d6 {[%clk 0:02:34.6]} 7.
d5 {[%clk 0:02:52.6]} 7... Nb8 {[%clk 0:02:28.3]} 8. Be2 {[%clk 0:02:41.8]} 8...
Nf6 {[%clk 0:02:27.4]} 9. O-O {[%clk 0:02:41.6]} 9... O-O {[%clk 0:02:27]} 10.
Be3 {[%clk 0:02:40.5]} 10... Nbd7 {[%clk 0:02:12.8]} 11. h3 {[%clk 0:02:39.4]}
11... Nc5 {[%clk 0:02:09.1]} 12. Rc1 {[%clk 0:02:35.2]} 12... Bf5 {[%clk
0:02:07.4]} 13. Nd4 {[%clk 0:02:34.4]} 13... Bd7 {[%clk 0:01:59.4]} 14. Bf3
{[%clk 0:02:31.8]} 14... Rc8 {[%clk 0:01:46.7]} 15. Qe2 {[%clk 0:02:24.7]} 15...
Re8 {[%clk 0:01:43]} 16. Rfd1 {[%clk 0:02:22.6]} 16... Qa5 {[%clk 0:01:39]} 17.
a3 {[%clk 0:02:05.4]} 17... Na4 {[%clk 0:01:31.5]} 18. b4 {[%clk 0:01:57.6]}
18... Nxc3 {[%clk 0:01:30.6]} 19. Rxc3 {[%clk 0:01:57.6]} 19... Qa6 {[%clk
0:01:26.4]} 20. Rdc1 {[%clk 0:01:50]} 20... Rc7 {[%clk 0:01:15]} 21. Nb5 {[%clk
0:01:44.4]} 21... Rcc8 {[%clk 0:00:51.9]} 22. Nxa7 {[%clk 0:01:40.3]} 22... Ra8
{[%clk 0:00:48.9]} 23. Nb5 {[%clk 0:01:39.5]} 23... Bxb5 {[%clk 0:00:43.5]} 24.
cxb5 {[%clk 0:01:39.3]} 24... Qa4 {[%clk 0:00:44.4]} 25. b6 {[%clk 0:01:18]}
25... Nd7 {[%clk 0:00:41.9]} 26. Rc7 {[%clk 0:01:17.9]} 26... Ne5 {[%clk
0:00:37]} 27. Rxb7 {[%clk 0:01:15.9]} 27... Qxa3 {[%clk 0:00:36.4]} 28. Ra7
{[%clk 0:00:36]} 28... Qxb4 {[%clk 0:00:24.8]} 29. Qa2 {[%clk 0:00:35.5]} 29...
Rab8 {[%clk 0:00:20.6]} 30. Be2 {[%clk 0:00:27.1]} 30... f5 {[%clk 0:00:13.7]}
31. Rb1 {[%clk 0:00:25.6]} 31... Qc3 {[%clk 0:00:12.7]} 32. Rc1 {[%clk
0:00:24.5]} 32... Qb4 {[%clk 0:00:12.5]} 33. Rb1 {[%clk 0:00:23.8]} 33... Qc3
{[%clk 0:00:12.5]} 34. Qa4 {[%clk 0:00:23.8]} 34... Bf6 {[%clk 0:00:05.7]} 35.
Bb5 {[%clk 0:00:20.6]} 35... Red8 {[%clk 0:00:03.8]} 36. Rc7 {[%clk 0:00:20.4]}
36... Qd3 {[%clk 0:00:01.3]} 37. Bxd3 {[%clk 0:00:19.3]} 37... Nxd3 {[%clk
0:00:02.2]} 38. Qc2 {[%clk 0:00:19.6]} 1-0

[Event "*** Titled Tuesday Blitz"]
[Site "Chess.com"]
[Date "2020.04.21"]
[Round "1"]
[White "Hanging_pointer"]
[Black "nekotyanof"]
[Result "1-0"]
[WhiteElo "2598"]
[BlackElo "2249"]
[TimeControl "180+1"]
[EndTime "10:07:20 PDT"]
[Termination "Hanging_pointer won by checkmate"]

1. d4 {[%clk 0:03:00.9]} 1... Nf6 {[%clk 0:02:59.8]} 2. c4 {[%clk 0:03:00.3]}
2... g6 {[%clk 0:02:59.7]} 3. Nf3 {[%clk 0:03:00.1]} 3... Bg7 {[%clk 0:02:58.9]}
4. g3 {[%clk 0:03:00.6]} 4... O-O {[%clk 0:02:58.4]} 5. Bg2 {[%clk 0:03:01.2]}
5... d5 {[%clk 0:02:58.5]} 6. Nc3 {[%clk 0:02:59.4]} 6... c6 {[%clk 0:02:56.5]}
7. O-O {[%clk 0:02:53.8]} 7... b6 {[%clk 0:02:56.2]} 8. Ne5 {[%clk 0:02:50.8]}
8... Bb7 {[%clk 0:02:56.1]} 9. e4 {[%clk 0:02:49.5]} 9... dxe4 {[%clk
0:02:54.4]} 10. Nxe4 {[%clk 0:02:50.4]} 10... Nbd7 {[%clk 0:02:54.2]} 11. Nxf6+
{[%clk 0:02:47.1]} 11... Nxf6 {[%clk 0:02:55.1]} 12. Nxc6 {[%clk 0:02:40.6]}
12... Qd7 {[%clk 0:02:33.9]} 13. d5 {[%clk 0:02:33.4]} 13... Rac8 {[%clk
0:02:26.9]} 14. Bf4 {[%clk 0:02:22]} 14... Rfe8 {[%clk 0:02:21.4]} 15. Re1
{[%clk 0:02:16.1]} 15... Nh5 {[%clk 0:02:10.8]} 16. Be5 {[%clk 0:02:07.8]} 16...
Bxe5 {[%clk 0:01:17.6]} 17. Nxe5 {[%clk 0:02:08.7]} 17... Qc7 {[%clk 0:01:16.6]}
18. b3 {[%clk 0:01:55.2]} 18... Ng7 {[%clk 0:01:14.4]} 19. h4 {[%clk 0:01:48.7]}
19... Rcd8 {[%clk 0:01:04.8]} 20. Qd2 {[%clk 0:01:31.5]} 20... f6 {[%clk
0:01:04.8]} 21. Ng4 {[%clk 0:01:20.7]} 21... Nf5 {[%clk 0:01:04.1]} 22. Nh6+
{[%clk 0:01:16.6]} 22... Nxh6 {[%clk 0:01:03.4]} 23. Qxh6 {[%clk 0:01:17.5]}
23... e5 {[%clk 0:01:02.3]} 24. dxe6 {[%clk 0:01:05.6]} 24... Bxg2 {[%clk
0:01:00.4]} 25. Kxg2 {[%clk 0:01:06.5]} 25... Qc6+ {[%clk 0:00:59]} 26. Kg1
{[%clk 0:01:03.2]} 26... Rxe6 {[%clk 0:00:58.7]} 27. Rxe6 {[%clk 0:00:46.4]}
27... Qxe6 {[%clk 0:00:59.6]} 28. Rc1 {[%clk 0:00:41.5]} 28... Qe4 {[%clk
0:00:55.5]} 29. h5 {[%clk 0:00:39.5]} 29... a5 {[%clk 0:00:47.3]} 30. hxg6
{[%clk 0:00:38.6]} 30... hxg6 {[%clk 0:00:46]} 31. Rf1 {[%clk 0:00:35.6]} 31...
Rd7 {[%clk 0:00:40.5]} 32. Qh3 {[%clk 0:00:34.1]} 32... f5 {[%clk 0:00:37.4]}
33. Qh6 {[%clk 0:00:32.3]} 33... Rd6 {[%clk 0:00:33.8]} 34. Qc1 {[%clk
0:00:27.7]} 34... Re6 {[%clk 0:00:32.3]} 35. Rd1 {[%clk 0:00:26.3]} 35... Re7
{[%clk 0:00:27.3]} 36. Qh6 {[%clk 0:00:23.8]} 36... Kf7 {[%clk 0:00:26.6]} 37.
Rd8 {[%clk 0:00:21.6]} 37... Qe1+ {[%clk 0:00:25.1]} 38. Kg2 {[%clk 0:00:21.1]}
38... Qe4+ {[%clk 0:00:25.1]} 39. Kh2 {[%clk 0:00:19.2]} 39... Qf3 {[%clk
0:00:19.6]} 40. Qh7+ {[%clk 0:00:18.9]} 40... Kf6 {[%clk 0:00:18]} 41. Rd6+
{[%clk 0:00:19.3]} 41... Kg5 {[%clk 0:00:15.8]} 42. Qh4# {[%clk 0:00:18]} 1-0

[Event "*** Titled Tuesday Blitz"]
[Site "Chess.com"]
[Date "2020.04.21"]
[Round "1"]
[White "JiaHaoxiang"]
[Black "annamaja"]
[Result "1-0"]
[WhiteElo "2563"]
[BlackElo "2206"]
[TimeControl "180+1"]
[EndTime "10:07:21 PDT"]
[Termination "JiaHaoxiang won by checkmate"]

1. d4 {[%clk 0:03:00.4]} 1... Nf6 {[%clk 0:02:59.5]} 2. c4 {[%clk 0:03:00.3]}
2... e6 {[%clk 0:02:59.8]} 3. Nf3 {[%clk 0:03:00.3]} 3... d5 {[%clk 0:02:59.5]}
4. g3 {[%clk 0:03:00.5]} 4... Bb4+ {[%clk 0:02:58.3]} 5. Bd2 {[%clk 0:03:00.2]}
5... Be7 {[%clk 0:02:57]} 6. Bg2 {[%clk 0:03:00.5]} 6... O-O {[%clk 0:02:56.9]}
7. O-O {[%clk 0:03:00.7]} 7... c6 {[%clk 0:02:55.3]} 8. Qc2 {[%clk 0:03:00.7]}
8... Nbd7 {[%clk 0:02:49.4]} 9. Bf4 {[%clk 0:02:59.7]} 9... Ne4 {[%clk
0:02:48.6]} 10. Nbd2 {[%clk 0:02:51.5]} 10... Ndf6 {[%clk 0:02:48.3]} 11. Rfd1
{[%clk 0:02:48.3]} 11... b6 {[%clk 0:02:43.7]} 12. Ne5 {[%clk 0:02:45.7]} 12...
Bb7 {[%clk 0:02:19.1]} 13. Nxe4 {[%clk 0:02:44.9]} 13... Nxe4 {[%clk 0:02:16.3]}
14. Bxe4 {[%clk 0:02:45.1]} 14... dxe4 {[%clk 0:02:17.2]} 15. Qxe4 {[%clk
0:02:45.6]} 15... Qc8 {[%clk 0:02:13.4]} 16. c5 {[%clk 0:02:30.5]} 16... f6
{[%clk 0:01:48.7]} 17. Nc4 {[%clk 0:02:12.7]} 17... bxc5 {[%clk 0:01:43.6]} 18.
dxc5 {[%clk 0:02:08.4]} 18... Bxc5 {[%clk 0:01:42.4]} 19. Bd6 {[%clk 0:02:08.6]}
19... Bxd6 {[%clk 0:01:15.4]} 20. Nxd6 {[%clk 0:02:09.5]} 20... Qd7 {[%clk
0:00:54.4]} 21. Rac1 {[%clk 0:01:52.6]} 21... e5 {[%clk 0:00:46.1]} 22. Nf5
{[%clk 0:01:41.1]} 22... Qc7 {[%clk 0:00:43.3]} 23. b4 {[%clk 0:01:23.6]} 23...
a6 {[%clk 0:00:42.5]} 24. Rc5 {[%clk 0:01:20.3]} 24... Rad8 {[%clk 0:00:41.6]}
25. Rdc1 {[%clk 0:01:20.4]} 25... Rd7 {[%clk 0:00:25.2]} 26. h4 {[%clk
0:01:16.1]} 26... Rfd8 {[%clk 0:00:24.9]} 27. h5 {[%clk 0:01:16.5]} 27... Rd1+
{[%clk 0:00:24.6]} 28. Rxd1 {[%clk 0:01:15.9]} 28... Rxd1+ {[%clk 0:00:25.5]}
29. Kh2 {[%clk 0:01:16.3]} 29... Rd5 {[%clk 0:00:23.8]} 30. Qg4 {[%clk
0:01:08.1]} 30... Rxc5 {[%clk 0:00:21.7]} 31. bxc5 {[%clk 0:01:09]} 31... Bc8
{[%clk 0:00:11.9]} 32. Ne7+ {[%clk 0:01:06.6]} 32... Qxe7 {[%clk 0:00:11.6]} 33.
Qxc8+ {[%clk 0:01:06.9]} 33... Kf7 {[%clk 0:00:08.5]} 34. Qxc6 {[%clk
0:01:06.5]} 34... a5 {[%clk 0:00:05.2]} 35. Qd5+ {[%clk 0:01:06.7]} 35... Kf8
{[%clk 0:00:04.7]} 36. c6 {[%clk 0:01:07]} 36... Qc7 {[%clk 0:00:02.7]} 37. a4
{[%clk 0:01:06]} 37... Ke8 {[%clk 0:00:01.8]} 38. Qg8+ {[%clk 0:01:05.7]} 38...
Ke7 {[%clk 0:00:02]} 39. Qxg7+ {[%clk 0:01:06.1]} 39... Kd6 {[%clk 0:00:02.7]}
40. Qxf6+ {[%clk 0:01:06.4]} 40... Kd5 {[%clk 0:00:02.9]} 41. h6 {[%clk
0:01:03.8]} 41... Qxc6 {[%clk 0:00:02.4]} 42. Qf7+ {[%clk 0:01:02.6]} 42... Kd4
{[%clk 0:00:02.2]} 43. Qxh7 {[%clk 0:01:02.9]} 43... e4 {[%clk 0:00:01.4]} 44.
Qg7+ {[%clk 0:01:02.8]} 44... Kc4 {[%clk 0:00:01.5]} 45. h7 {[%clk 0:01:03.2]}
45... e3 {[%clk 0:00:01.7]} 46. Qg8+ {[%clk 0:01:02.7]} 46... Kb4 {[%clk
0:00:01.3]} 47. h8=Q {[%clk 0:01:02.3]} 47... exf2 {[%clk 0:00:02.2]} 48. Qb2+
{[%clk 0:01:00.9]} 48... Kc5 {[%clk 0:00:01.6]} 49. Qc3+ {[%clk 0:01:00]} 49...
Kb6 {[%clk 0:00:02.5]} 50. Qb8+ {[%clk 0:00:59.7]} 50... Qb7 {[%clk 0:00:01.7]}
51. Qb3+ {[%clk 0:00:59.3]} 51... Kc5 {[%clk 0:00:01.4]} 52. Q8xb7 {[%clk
0:00:58.2]} 52... f1=Q {[%clk 0:00:01.4]} 53. Q3d5# {[%clk 0:00:58.1]} 1-0